[Event "Charlotte CC Fall IM-A 2024"]
[Site "Charlotte"]
[Date "2024.11.25"]
[Round "7.2"]
[White "Macovei, Andrei"]
[Black "Bilych, Oleksii"]
[Result "0-1"]
[Annotator "TA"]
[ECO "B51"]
[WhiteElo "2476"]
[BlackElo "2429"]
[PlyCount "88"]
[EventDate "2024.11.22"]
[EventType "tourn"]
[EventCountry "USA"]
[SourceTitle "playchess.com"]
[Source "ChessBase"]
[SourceQuality "1"]
[TimeControl "5400+30"]

{[%evp 17,88,-5,7,-7,52,28,48,28,59,62,59,0,49,36,38,0,39,50,75,87,97,100,108,100,91,54,45,0,0,-3,0,0,0,0,0,0,0,-87,-79,-81,-77,-75,-92,-61,0,-135,-126,-143,-128,-156,-157,-242,-170,-280,-274,-343,-376,-646,-640,-1156,-1109,-1431,-1401,-1341,-1367,-1083,-728,-737,-720,-686,-619,-721,-714]} 1. e4 {[%emt 0:11:07]} c5 {[%emt 0:00:06]} 2. Nf3 {[%emt 0:00:06]} d6 {[%emt 0:00:05]} 3. Bb5+ {[%emt 0:00:15]} Nd7 {[%emt 0:00:10]} 4. O-O {[%emt 0:00:09]} a6 {[%emt 0:00:15]} 5. Be2 {[%emt 0:00:05]} Ngf6 {[%emt 0:00:30]} 6. d3 {[%emt 0:00:04] B51: Sicilian: Moscow Variation (3 Bb5+) without 3...Bd7.} e6 {[%emt 0:00:45]} 7. a4 {[%emt 0:00:05]} b6 {[%emt 0:04:45]} 8. Nfd2 {[%emt 0:00:10]} Bb7 {[%emt 0:00:11]} 9. f4 {[%emt 0:00:06]} Be7 {[%emt 0:00:49]} 10. Bf3 {[%emt 0:05:22]} h5 {[%emt 0:03:37]} (10... Qc7 $11) 11. Nc3 {[%emt 0:06:52]} Qc7 {[%emt 0:00:50]} 12. Qe2 {[%emt 0:16:01]} O-O-O {[%emt 0:22:39]} 13. Nc4 {[%emt 0:00:27]} g6 {[%emt 0:00:03] [#]} 14. f5 $146 {[%emt 0:11:53]} (14. e5 $1 $14 Ne8 15. exd6 (15. Bxb7+ Kxb7 16. f5 gxf5 $16) 15... Nxd6 16. Bxb7+ Kxb7 17. Ne4) ({Predecessor:} 14. e5 Ne8 15. Bxb7+ Qxb7 16. exd6 Nxd6 17. Nxd6+ Bxd6 18. Ne4 Be7 19. a5 b5 20. Ng5 {1-0 Radeva,V (2315)-Koridze,L (2121) EU-ch (Women) 24th 2024 (5)}) 14... Nh7 {[%emt 0:12:18]} (14... exf5 15. exf5 Rhe8 16. fxg6 fxg6 17. Qe6 $16) (14... gxf5 $11 15. exf5 Bxf3 16. Qxf3 (16. Rxf3 e5 $11) 16... d5 17. fxe6 fxe6) 15. fxe6 {[%emt 0:20:21]} fxe6 {[%emt 0:00:05]} 16. Be3 {[%emt 0:00:13]} Rdf8 {[%emt 0:13:18]} 17. d4 {[%emt 0:01:10]} cxd4 {[%emt 0:11:29]} 18. Bxd4 {[%emt 0:00:05]} Rhg8 {[%emt 0:00:29]} 19. a5 {[%emt 0:09:49]} b5 {[%emt 0:00:26]} 20. Nb6+ {[%emt 0:00:08]} Nxb6 {[%emt 0:01:50]} 21. Bxb6 {[%emt 0:03:00]} Qc6 {[%emt 0:00:12]} 22. Rae1 {[%emt 0:04:56]} (22. e5 $14 d5 23. Qe3) 22... Ng5 $11 {[%emt 0:01:12]} 23. Nd5 {[%emt 0:00:31]} Bd8 {[%emt 0:00:03]} (23... Nxf3+ $2 24. Rxf3 exd5 25. Rc3 $18) 24. Bxd8 {[%emt 0:01:52]} Kxd8 {[%emt 0:00:04]} ({Of course not} 24... Nxf3+ 25. Rxf3 Qc5+ 26. Kh1 Rxf3 27. Bb6 $14 (27. gxf3 Rxd8 28. Nf4 Qe5 $11) (27. Qxf3 exd5 28. Bb6 dxe4 $16) (27. gxf3 Rxd8 28. Ne7+ Kb8 $11) (27. Qxf3 exd5 28. Bb6 dxe4 $16)) 25. Nb6 {[%emt 0:00:17]} Qc5+ {[%emt 0:00:44]} 26. Qe3 {[%emt 0:01:15]} Ke7 {[%emt 0:04:26]} 27. e5 {[%emt 0:04:04]} (27. Qxc5 $11 dxc5 28. c4) 27... Nxf3+ $17 {[%emt 0:01:49]} 28. gxf3 {[%emt 0:00:06]} Qxe5 {[%emt 0:00:12]} (28... Rxf3 $2 {is the wrong capture.} 29. exd6+ Qxd6 30. Rxf3 $18) 29. Qxe5 {[%emt 0:00:57]} dxe5 {[%emt 0:00:04]} 30. Rxe5 {[%emt 0:00:11]} Bxf3 {[%emt 0:02:14]} (30... Rf5 $15 31. Rxf5 gxf5+ 32. Kf2 h4) 31. Rfe1 {[%emt 0:00:56]} (31. Re3 $1 $11 Bg4 32. Nd5+ Kd6 33. Nb4 (33. Nf6 Rh8 $11)) 31... Rf6 $17 {[%emt 0:04:54]} 32. Rc5 {[%emt 0:00:07] [#]} Rd8 $1 {[%emt 0:00:10]} 33. Rc7+ {[%emt 0:00:27]} Ke8 {[%emt 0:00:06]} 34. Kf2 {[%emt 0:00:52]} (34. Rc8 $17) 34... Bg4+ {[%emt 0:00:21]} 35. Ke3 {[%emt 0:00:41]} (35. Kg3 $142) 35... Rf5 {[%emt 0:00:42]} 36. Rg1 {[%emt 0:01:40]} g5 {[%emt 0:00:30]} 37. Rxg4 $2 {[%emt 0:01:46]} (37. Ke4) 37... hxg4 $19 {[%emt 0:00:05]} 38. Ra7 {[%emt 0:00:39]} Rf3+ {[%emt 0:00:44]} 39. Ke4 {[%emt 0:00:06]} Rf2 {[%emt 0:00:16]} 40. Ke5 {[%emt 0:00:37]} Rxh2 {[%emt 0:00:25]} 41. Rg7 {[%emt 0:00:06]} Kf8 {[%emt 0:01:14]} 42. Rxg5 {[%emt 0:00:06]} Kf7 {[%emt 0:00:09]} 43. Rxg4 {[%emt 0:00:31]} Re2+ {[%emt 0:00:09]} 44. Kf4 {[%emt 0:00:03]} Rxc2 {[%emt 0:00:11]} 0-1

[Event "Charlotte CC Fall IM-A 2024"]
[Site "Charlotte"]
[Date "2024.11.25"]
[Round "7.3"]
[White "Asavasaetakul, Chawit"]
[Black "Tsay, Vincent"]
[Result "1/2-1/2"]
[Annotator "RC"]
[ECO "A13"]
[WhiteElo "2009"]
[BlackElo "2309"]
[PlyCount "117"]
[EventDate "2024.11.22"]
[EventType "tourn"]
[EventCountry "USA"]
[SourceTitle "playchess.com"]
[Source "ChessBase"]
[SourceQuality "1"]
[TimeControl "5400+30"]

1. Nf3 {[%emt 0:00:47]} d5 {[%emt 0:04:20]} 2. e3 {[%emt 0:00:17]} Nf6 {[%emt 0:00:33]} 3. c4 {[%emt 0:00:09]} e6 {[%emt 0:00:20]} 4. b3 {[%emt 0:00:32]} Be7 {[%emt 0:01:31]} 5. Bb2 {[%emt 0:00:08]} O-O {[%emt 0:00:08]} 6. Nc3 {[%emt 0:02:12]} c5 {[%emt 0:01:00]} 7. cxd5 {[%emt 0:00:14]} exd5 {[%emt 0:01:01]} 8. Ne2 {[%emt 0:16:17]} Nc6 {[%emt 0:00:56]} 9. Ng3 {[%emt 0:00:52]} a6 {[%emt 0:05:48]} 10. Bd3 {[%emt 0:07:21]} Re8 {[%emt 0:01:47]} 11. O-O {[%emt 0:07:46]} Bf8 {[%emt 0:01:44]} 12. Rc1 {[%emt 0:02:01]} h6 {[%emt 0:05:11]} 13. Bb1 {[%emt 0:02:38]} d4 {[%emt 0:01:38]} 14. exd4 {[%emt 0:01:25]} cxd4 {[%emt 0:00:23]} 15. Rxc6 {[%emt 0:04:34]} bxc6 {[%emt 0:00:40]} 16. Nxd4 {[%emt 0:00:24]} c5 {[%emt 0:02:29]} 17. Ndf5 {[%emt 0:02:49]} Bb7 {[%emt 0:06:22]} 18. Qc2 {[%emt 0:13:16]} g6 {[%emt 0:07:58]} 19. Nh4 {[%emt 0:04:17]} Ne4 {[%emt 0:14:07]} 20. Nxg6 {[%emt 0:06:00]} fxg6 {[%emt 0:02:16]} 21. f3 {[%emt 0:01:10]} Qxd2 {[%emt 0:07:28]} 22. Nxe4 {[%emt 0:00:37]} Qxc2 {[%emt 0:00:10]} 23. Bxc2 {[%emt 0:01:59]} Bxe4 {[%emt 0:00:14]} 24. Bxe4 {[%emt 0:00:06]} Rad8 {[%emt 0:00:10]} 25. Bc3 {[%emt 0:02:59]} Bg7 {[%emt 0:00:57]} 26. Rc1 {[%emt 0:01:34]} Bxc3 {[%emt 0:01:25]} 27. Rxc3 {[%emt 0:00:02]} Re5 {[%emt 0:00:13]} 28. Rc2 {[%emt 0:01:42]} g5 {[%emt 0:00:19]} 29. Kf2 {[%emt 0:04:10]} Rd4 {[%emt 0:00:24]} 30. Kg3 {[%emt 0:02:17]} Kg7 {[%emt 0:01:14]} 31. h4 {[%emt 0:01:03]} Kf6 {[%emt 0:00:56]} 32. hxg5+ {[%emt 0:01:13]} hxg5 {[%emt 0:00:16]} 33. Kf2 {[%emt 0:01:50]} Ke7 {[%emt 0:01:09]} 34. Ke3 {[%emt 0:01:18]} Kd6 {[%emt 0:00:40]} 35. Rc1 {[%emt 0:01:38]} a5 {[%emt 0:00:38]} 36. Rh1 {[%emt 0:00:34]} a4 {[%emt 0:00:44]} 37. Rh6+ {[%emt 0:01:15]} Re6 {[%emt 0:01:32]} 38. Rh5 {[%emt 0:00:35]} axb3 {[%emt 0:08:34]} 39. axb3 {[%emt 0:00:10]} Re5 {[%emt 0:00:13]} 40. Rh6+ {[%emt 0:00:22]} Ke7 {[%emt 0:00:12]} 41. Rh7+ {[%emt 0:00:41]} Kd8 {[%emt 0:01:37]} 42. Rb7 {[%emt 0:02:04]} Rd7 {[%emt 0:03:58]} 43. Rb8+ {[%emt 0:00:37]} Kc7 {[%emt 0:00:25]} 44. Rb7+ {[%emt 0:00:07]} Kc8 {[%emt 0:00:20]} 45. Rb6 {[%emt 0:00:17]} Rd4 {[%emt 0:02:10]} 46. Rb5 {[%emt 0:00:34]} Kd7 {[%emt 0:00:27]} 47. Rb7+ {[%emt 0:00:23]} Kd6 {[%emt 0:01:06]} 48. Rb6+ {[%emt 0:00:12]} Ke7 {[%emt 0:00:06]} 49. Rb7+ {[%emt 0:00:36]} Kf6 {[%emt 0:00:28]} 50. Rb6+ {[%emt 0:00:12]} Kf7 {[%emt 0:00:13]} 51. Rb7+ {[%emt 0:00:26]} Re7 {[%emt 0:00:16]} 52. Rb5 {[%emt 0:00:49]} Rc7 {[%emt 0:00:19]} 53. Rb6 {[%emt 0:00:35]} Rb4 {[%emt 0:04:14]} 54. Bd5+ {[%emt 0:00:35]} Kg7 {[%emt 0:00:09]} 55. Re6 {[%emt 0:02:16]} Kf8 {[%emt 0:01:31]} 56. Rf6+ {[%emt 0:00:17]} Ke8 {[%emt 0:00:36]} 57. Bc4 {[%emt 0:00:18]} Re7+ {[%emt 0:00:27]} 58. Kf2 {[%emt 0:00:28]} Re5 {[%emt 0:00:35]} 59. Kg3 {[%emt 0:00:26]} 1/2-1/2

[Event "Charlotte CC Fall IM-A 2024"]
[Site "Charlotte"]
[Date "2024.11.25"]
[Round "7.4"]
[White "Stremavicius, Pijus"]
[Black "Atwell, Rose"]
[Result "1-0"]
[Annotator "TA"]
[ECO "A00"]
[WhiteElo "2346"]
[BlackElo "2164"]
[PlyCount "153"]
[EventDate "2024.11.22"]
[EventType "tourn"]
[EventCountry "USA"]
[SourceTitle "playchess.com"]
[Source "ChessBase"]
[SourceQuality "1"]
[TimeControl "5400+30"]

{[%evp 62,153,67,67,67,67,68,67,83,83,83,83,112,112,116,116,215,200,264,262,284,257,265,272,340,334,340,343,341,333,342,336,329,323,355,334,323,294,251,257,481,480,581,609,532,522,648,633,1067,1033,1567,1512,29971,29972,5193,1772,5314,5314,1786,576,1183,1022,1197,1051,1193,1018,1129,1108,1124,1057,999,1176,1105,1137,29974,29975,29972,29978,29982,29983,29984,29985,29985,29986,29986,29987,29986,29985,29985,29983,29986,29987,29983,99]} 1. g3 {[%emt 0:11:30]} e5 {[%emt 0:00:08]} 2. Bg2 {[%emt 0:00:09]} d5 {[%emt 0:00:05]} 3. d3 {[%emt 0:00:04]} Nf6 {[%emt 0:00:17]} 4. a3 {[%emt 0:00:16]} Bd6 {[%emt 0:00:54]} 5. c4 {[%emt 0:01:44]} dxc4 {[%emt 0:05:33]} 6. Qa4+ {[%emt 0:00:28]} c6 {[%emt 0:00:52]} 7. Qxc4 {[%emt 0:00:05]} Be6 {[%emt 0:00:55]} 8. Qc2 {[%emt 0:00:07]} Nbd7 {[%emt 0:02:55]} 9. Nf3 {[%emt 0:00:32]} h6 {[%emt 0:03:14]} 10. O-O {[%emt 0:00:30]} O-O {[%emt 0:01:19]} 11. Nbd2 {[%emt 0:00:12]} Re8 {[%emt 0:03:42]} 12. b3 {[%emt 0:00:31]} Qe7 {[%emt 0:05:13]} 13. Bb2 {[%emt 0:00:49]} Bc7 {[%emt 0:01:02]} 14. Rfe1 {[%emt 0:02:30]} Rad8 {[%emt 0:06:05]} 15. d4 {[%emt 0:00:16]} e4 {[%emt 0:02:34]} 16. Nxe4 {[%emt 0:00:14]} Nxe4 {[%emt 0:00:18]} 17. Qxe4 {[%emt 0:00:03]} Bxb3 {[%emt 0:00:25]} 18. Qxe7 {[%emt 0:02:30]} Rxe7 {[%emt 0:00:02]} 19. Nd2 {[%emt 0:00:06]} Be6 {[%emt 0:04:38]} 20. Bc3 {[%emt 0:00:05]} Nb6 {[%emt 0:03:11]} 21. e3 {[%emt 0:00:34]} Na4 {[%emt 0:02:41]} 22. Nb1 {[%emt 0:02:36]} Bd5 {[%emt 0:08:44]} 23. Rc1 {[%emt 0:01:40]} f5 {[%emt 0:04:03]} 24. Bb4 {[%emt 0:00:31]} Ree8 {[%emt 0:00:56]} 25. Nc3 {[%emt 0:00:05]} Nxc3 {[%emt 0:00:46]} 26. Bxc3 {[%emt 0:00:04]} Bxg2 {[%emt 0:05:10]} 27. Kxg2 {[%emt 0:00:04]} Bd6 {[%emt 0:00:49]} 28. a4 {[%emt 0:00:12]} Kf7 {[%emt 0:01:44]} 29. Rab1 {[%emt 0:00:18]} Rd7 {[%emt 0:01:10]} 30. h4 {[%emt 0:00:17]} h5 {[%emt 0:03:08]} 31. Bb4 {[%emt 0:00:04]} Ke6 {[%emt 0:04:45]} 32. Kf3 {[%emt 0:00:04]} Ree7 {[%emt 0:02:31]} 33. a5 {[%emt 0:01:39]} Bxb4 {[%emt 0:00:55]} 34. Rxb4 {[%emt 0:00:01]} Kd6 {[%emt 0:02:49]} 35. Rc5 {[%emt 0:01:34]} g6 {[%emt 0:00:59]} 36. Kf4 {[%emt 0:00:31]} Re4+ {[%emt 0:01:24]} 37. Kg5 {[%emt 0:01:33]} Re6 {[%emt 0:06:43]} 38. Rbc4 {[%emt 0:00:47]} Kc7 {[%emt 0:01:11]} (38... Rc7 $16) 39. a6 $18 {[%emt 0:01:46]} Red6 {[%emt 0:04:01]} 40. axb7 {[%emt 0:03:22]} Kxb7 {[%emt 0:00:05]} 41. Rb4+ {[%emt 0:00:03]} Kc8 {[%emt 0:01:48]} 42. Re5 {[%emt 0:00:07]} Kc7 {[%emt 0:02:38]} 43. Re8 {[%emt 0:00:11]} a5 {[%emt 0:00:52]} 44. Ra4 {[%emt 0:00:12]} (44. Rbb8 Rd8 45. Rexd8 Rxd8 $16) 44... Kb6 {[%emt 0:00:55]} 45. Rb8+ {[%emt 0:00:12]} (45. Ra8 Rd5 46. Kxg6 R7d6+ 47. Kxh5 f4+ 48. Kg4 fxe3 49. fxe3 Rg6+ 50. Kh3 Rf5 $18) 45... Ka7 {[%emt 0:00:29]} 46. Rg8 {[%emt 0:00:55]} (46. Rxa5+ $2 Kxb8 47. Re5 Ra7 48. Re8+ Kc7 $19) 46... Kb6 {[%emt 0:01:35]} 47. Ra1 {[%emt 0:00:04]} (47. Rxg6 Kb5 48. Rxd6 Rxd6 $16) 47... Ra7 {[%emt 0:03:54]} 48. Rxg6 {[%emt 0:00:18]} Rd5 {[%emt 0:00:30]} 49. Rf6 {[%emt 0:00:28]} a4 {[%emt 0:02:07]} 50. Rxf5 {[%emt 0:00:10]} Rg7+ $2 {[%emt 0:01:44]} (50... Rb5 51. e4 a3) 51. Kf6 $18 {[%emt 0:00:29]} (51. Kxh5 $2 Rxf5+ 52. Kh6 Rg4 53. Rb1+ Ka5 $19) 51... Rxf5+ {[%emt 0:00:43]} 52. Kxf5 {[%emt 0:00:02]} Kb5 {[%emt 0:00:22]} 53. Ke4 {[%emt 0:02:05]} Rf7 {[%emt 0:00:50]} 54. f4 {[%emt 0:00:09]} Rg7 {[%emt 0:00:03]} 55. f5 {[%emt 0:00:14]} Rxg3 {[%emt 0:00:49]} 56. f6 {[%emt 0:00:04]} Rg4+ {[%emt 0:00:41]} 57. Ke5 {[%emt 0:00:14]} Rg3 {[%emt 0:00:14]} 58. e4 {[%emt 0:00:10]} (58. Rf1 $142 Rxe3+ 59. Kd6) 58... a3 {[%emt 0:00:22]} 59. f7 {[%emt 0:00:27]} Rf3 {[%emt 0:00:06] [#]} 60. Rxa3 {[%emt 0:00:41]} (60. Ke6 $142 $3 {[%cal Oa1a3][%mdl 512] White wants to mate with Rxa3!.} Kc4 (60... Kb4 61. e5) 61. Rxa3 Rxa3 62. f8=Q (62. f8=R Kxd4 63. e5 Re3 $18)) 60... Rxf7 $18 {[%emt 0:00:11]} 61. Rc3 {[%emt 0:00:25]} Re7+ {[%emt 0:01:12]} 62. Kf4 {[%emt 0:00:04]} Rd7 {[%emt 0:00:14]} 63. Rc5+ {[%emt 0:00:04]} (63. Ke5 Rg7 64. d5 cxd5 65. exd5 Kb6) 63... Kb6 {[%emt 0:00:39]} 64. Ke3 {[%emt 0:00:04]} ({Not} 64. Rxh5 Rxd4 65. Rh8 Rd1 $16) 64... Rh7 {[%emt 0:00:12]} 65. Rg5 {[%emt 0:00:05]} Kc7 {[%emt 0:00:39]} 66. e5 {[%emt 0:00:03]} Kd7 {[%emt 0:00:14]} 67. Ke4 {[%emt 0:00:04]} Rh6 {[%emt 0:00:22]} 68. Rg7+ {[%emt 0:00:11]} Kd8 {[%emt 0:00:33]} 69. Kf5 {[%emt 0:00:06]} Rh8 {[%emt 0:00:16]} 70. e6 {[%emt 1:16:46]} Rh6 {[%emt 0:00:46]} 71. Ke5 {[%emt 0:00:00]} Ke8 {[%emt 0:00:18]} 72. Kd6 {[%emt 0:00:00]} Kf8 {[%emt 0:00:03]} 73. Rf7+ {[%emt 0:00:00]} Ke8 {[%emt 0:00:16]} 74. Rc7 {[%emt 0:00:00]} (74. Kxc6 $2 {perishes.} Rxe6+ 75. Kc5 Kxf7 $19) 74... Kd8 {[%emt 0:00:16]} 75. Rxc6 {[%emt 0:00:00]} Rh7 {[%emt 0:00:05]} 76. e7+ {[%emt 0:00:00]} Rxe7 {[%emt 0:00:07]} 77. Rc8+ {[%emt 0:00:00]} 1-0

[Event "Charlotte CC Fall IM-A 2024"]
[Site "Charlotte"]
[Date "2024.11.25"]
[Round "7.5"]
[White "Wang, Isaac"]
[Black "Girsh, Daniel"]
[Result "1/2-1/2"]
[Annotator "RC"]
[ECO "D37"]
[WhiteElo "2328"]
[BlackElo "2180"]
[PlyCount "107"]
[EventDate "2024.11.22"]
[EventType "tourn"]
[EventCountry "USA"]
[SourceTitle "playchess.com"]
[Source "ChessBase"]
[SourceQuality "1"]
[TimeControl "5400+30"]

1. d4 {[%emt 0:00:01]} Nf6 {[%emt 0:02:28]} 2. c4 {[%emt 0:00:06]} e6 {[%emt 0:00:04]} 3. Nf3 {[%emt 0:00:03]} d5 {[%emt 0:00:03]} 4. Nc3 {[%emt 0:00:06]} a6 {[%emt 0:00:04]} 5. cxd5 {[%emt 0:00:46]} exd5 {[%emt 0:00:07]} 6. Bg5 {[%emt 0:00:35]} Be6 {[%emt 1:30:44]} 7. Bxf6 {[%emt 0:00:46]} Qxf6 {[%emt 0:00:00]} 8. Qb3 {[%emt 0:00:08]} Ra7 {[%emt 0:00:00]} 9. g3 {[%emt 0:00:24]} Qd8 {[%emt 0:00:00]} 10. h4 {[%emt 0:01:28]} Be7 {[%emt 0:02:00]} 11. Ng5 {[%emt 1:31:37]} Bxg5 {[%emt 0:00:00]} 12. hxg5 {[%emt 0:00:00]} Nc6 {[%emt 0:00:00]} 13. Bg2 {[%emt 0:00:00]} Ne7 {[%emt 0:00:00]} 14. Qc2 {[%emt 0:00:00]} Bf5 {[%emt 0:00:00]} 15. e4 {[%emt 0:00:00]} dxe4 {[%emt 0:00:00]} 16. Bxe4 {[%emt 0:00:00]} Qd7 {[%emt 0:00:00]} 17. O-O-O {[%emt 0:00:00]} Ra8 {[%emt 0:00:00]} 18. Rde1 {[%emt 0:00:00]} Kf8 {[%emt 0:00:00]} 19. Qb3 {[%emt 0:00:00]} Rb8 {[%emt 0:00:00]} 20. Rh4 {[%emt 0:04:30]} h5 {[%emt 0:00:00]} 21. Rf4 {[%emt 0:00:00]} g6 {[%emt 0:00:00]} 22. Bf3 {[%emt 0:00:00]} Kg7 {[%emt 0:00:00]} 23. d5 {[%emt 0:00:00]} Rhe8 {[%emt 0:00:00]} 24. Rh1 {[%emt 0:00:00]} Nc8 {[%emt 0:00:00]} 25. Qc4 {[%emt 0:00:00]} Qe7 {[%emt 0:00:00]} 26. Bxh5 {[%emt 0:00:00]} Nd6 {[%emt 0:00:00]} 27. Qd4+ {[%emt 0:00:00]} Qe5 {[%emt 0:00:00]} 28. Bf3 {[%emt 0:00:00]} Qxd4 {[%emt 0:00:00]} 29. Rxd4 {[%emt 0:00:00]} Re5 {[%emt 0:00:00]} 30. Rdh4 {[%emt 0:00:00]} Rbe8 {[%emt 0:00:00]} 31. Rh7+ {[%emt 0:00:00]} Kf8 {[%emt 0:00:00]} 32. Rh8+ {[%emt 0:00:00]} Ke7 {[%emt 0:00:00]} 33. Rxe8+ {[%emt 0:00:00]} Kxe8 {[%emt 0:00:00]} 34. Bd1 {[%emt 0:00:00]} b5 {[%emt 0:00:31]} 35. g4 {[%emt 0:00:00]} Bd7 {[%emt 0:00:08]} 36. a3 {[%emt 0:00:44]} a5 {[%emt 0:00:08]} 37. f4 {[%emt 0:00:48]} Re3 {[%emt 0:00:05]} 38. Rg1 {[%emt 0:03:31]} b4 {[%emt 0:03:20]} 39. axb4 {[%emt 0:00:03]} axb4 {[%emt 0:00:02]} 40. Ne2 {[%emt 0:00:57]} Rd3 {[%emt 0:00:15]} 41. Rg3 {[%emt 0:00:43]} Rxd5 {[%emt 0:00:28]} 42. Re3+ {[%emt 0:00:03]} Kd8 {[%emt 0:00:07]} 43. Ng3 {[%emt 0:00:46]} Rd4 {[%emt 0:11:26]} 44. f5 {[%emt 0:01:10]} gxf5 {[%emt 0:00:00]} 45. gxf5 {[%emt 0:00:03]} Nxf5 {[%emt 0:00:00]} 46. Nxf5 {[%emt 0:00:29]} Bxf5 {[%emt 0:00:00]} 47. Bb3 {[%emt 0:00:19]} Bg6 {[%emt 0:00:00]} 48. Rf3 {[%emt 0:00:16]} Ke7 {[%emt 0:00:00]} 49. Re3+ {[%emt 0:01:03]} Re4 {[%emt 0:00:00]} 50. Rxe4+ {[%emt 0:00:04]} Bxe4 {[%emt 0:00:00]} 51. Kd2 {[%emt 0:00:06]} Bg6 {[%emt 0:00:00]} 52. Ke3 {[%emt 0:00:13]} c5 {[%emt 0:00:00]} 53. Kf4 {[%emt 0:00:13]} Bd3 {[%emt 0:00:00]} 54. Bd5 {[%emt 0:00:07]} 1/2-1/2